Cogmind - Beta 16.1 @@@ ROGUE MODE // 2026.03.02 @ 20:10:19 Player: Kakograf Result: Destroyed by Dirty Bomb Trap Performance ------------- Evolutions (3) 1500 Regions Visited (9) 1800 Robots Destroyed (62) 310 Value Destroyed (1656) 1656 Prototype IDs (12) 240 Alien Tech Used (0) 0 Bonus (1135) 1135 TOTAL SCORE: 6641 Bonus ------- High Alert Combat Kills 75 Follower Combat Kills 60 Entered Garrisons 200 Used RIF Installer 500 Met Data Miner 300 Cogmind --------- Core Integrity 0/700 Matter 300/300 Energy 99/100 System Corruption 0% Temperature Cool (0) Movement Core (50) Location -6/Proximity Caves Parts ------- > --- POWER (2) -------- (None) > --- PROPULSION (3) --- (None) > --- UTILITY (5) ------ Improved Signal Interpreter Improved Targeting Computer > --- WEAPON (3) ------- (None) > --- INVENTORY (5) ---- Improved Flight Unit Advanced Weight Redist. System Hacking Suite Peak State ------------ > --- POWER ------------ Ion Engine Heavy Ion Engine > --- PROPULSION ------- Flight Unit Improved Flight Unit Improved Flight Unit > --- UTILITY ---------- Advanced Weight Redist. System Improved Sensor Array Improved Signal Interpreter Improved Targeting Computer > --- WEAPON ----------- Rocket Launcher Mini Grenade Launcher > --- INVENTORY -------- Improved Flight Unit Xenon Bombardment Thruster Advanced Weight Redist. System Sensor Array Mining Claw [Rating: 27] Favorites ----------- Power Ion Engine Engine Ion Engine Power Core Light Nuclear Core Propulsion Improved Flight Unit Leg Aluminum Leg Flight Unit Improved Flight Unit Utility Small Storage Unit Device Weight Redist. System Storage Small Storage Unit Processor Visual Processing Unit Weapon Mini Grenade Launcher Energy Gun Medium Laser Ballistic Gun Assault Rifle Launcher Mini Grenade Launcher Build | -11 -10 -9 -9 -9 -9 -7 -7 -7 -6 ------- Run | Yrd Mat Mat Sto Gar Rec Fac Low Dat Pro Slots Evolved 6 | . . 2 . . . 4 . . . Power 1 | . . . . . . 1 . . . Propulsion 1 | . . . . . . 1 . . . Utility 3 | . . 2 . . . 1 . . . Weapon 1 | . . . . . . 1 . . . Parts Attached 45 | 6 6 6 5 8 1 10 3 . . Power 7 | 1 1 . 1 2 . 1 1 . . Engine 6 | 1 1 . 1 2 . 1 . . . Core 1 | . . . . . . . 1 . . Reactor . | . . . . . . . . . . Propulsion 14 | 2 3 2 3 2 . 1 1 . . Treads . | . . . . . . . . . . Leg 5 | 2 3 . . . . . . . . Wheel . | . . . . . . . . . . Hover . | . . . . . . . . . . Flight 9 | . . 2 3 2 . 1 1 . . Utility 13 | 1 1 2 . 1 1 6 1 . . Device 7 | . . 1 . 1 1 3 1 . . Storage 2 | 1 . . . . . 1 . . . Processor 4 | . 1 1 . . . 2 . . . Hackware . | . . . . . . . . . . Protection . | . . . . . . . . . . Artifact . | . . . . . . . . . . Weapon 11 | 2 1 2 1 3 . 2 . . . Energy Gun 4 | 1 1 . . 2 . . . . . Energy Cannon . | . . . . . . . . . . Ballistic Gun 1 | 1 . . . . . . . . . Ballistic Cannon . | . . . . . . . . . . Launcher 6 | . . 2 1 1 . 2 . . . Special Weapon . | . . . . . . . . . . Impact Weapon . | . . . . . . . . . . Slashing Weapon . | . . . . . . . . . . Piercing Weapon . | . . . . . . . . . . Special Melee Weapon . | . . . . . . . . . . Unidentified Prototypes 2 | . . . 1 1 . . . . . Parts Lost 27 | . 2 3 1 8 . 2 5 . 6 Power 7 | . 1 . . 3 . . 2 . 1 Propulsion 7 | . . 1 1 1 . . 1 . 3 Utility 5 | . . . . 1 . 1 1 . 2 Weapon 8 | . 1 2 . 3 . 1 1 . . Highest Loss Streak 6 | . 1 2 1 5 . 1 3 . 6 To Critical Strikes . | . . . . . . . . . . Average Backups 5 | 1 4 5 7 7 7 3 3 3 3 Power . | . . . 1 1 1 . . . . Propulsion 1 | . . 1 1 2 2 1 1 1 1 Utility 1 | . . . 2 2 2 1 2 2 2 Weapon 1 | . 2 3 2 1 2 . . . . Tool/Special . | . . . . . . . . . . Unused Backups 7 | . 1 1 . 3 . 1 . . 1 Power . | . . . . . . . . . . Propulsion 1 | . . 1 . . . . . . . Utility 4 | . . . . 3 . . . . 1 Weapon 2 | . 1 . . . . 1 . . . Tool/Special . | . . . . . . . . . . Average Slot Usage (%) 83 | . 90 86 95 86 77 80 65 61 36 Engine 11 | . 14 11 11 6 11 14 8 . . Leg 11 | . 28 14 . . . . . . . Flight 11 | . . 4 20 21 22 23 22 23 11 Device 6 | . . 4 11 8 17 14 10 15 7 Storage 8 | . 14 11 11 11 11 . . . . Processor 14 | . 5 22 22 22 15 14 15 15 15 Energy Gun 4 | . 13 2 . 3 . . . . . Ballistic Gun 4 | . 14 2 . . . . . . . Launcher 7 | . . 14 18 12 . 11 5 . . Peak Build Rating 27 | 6 9 13 19 23 16 27 27 25 25 Average Rating 14 | 4 7 10 16 17 15 24 23 25 12 On Entrance 14 | . 6 9 11 19 16 15 23 25 25 Avg Prop Armor Cover (%) 13 | . . . . 4 . . . . 16 Naked Turns . | . . . . . . . . . . Heaviest Build 23 | 14 14 14 14 14 14 23 15 8 8 Greatest Support 26 | 20 20 26 16 16 16 24 25 25 25 Greatest Overweight (x) 4 | 3 . 1 . 4 . 1 . . . Average Overweight (x) . | . . . . . . . . . . Largest Inventory Capacity 8 | 8 8 8 8 8 8 8 5 5 5 Average Capacity 7 | 7 8 8 8 8 8 5 5 5 5 Most Carried 8 | 2 8 7 8 8 8 6 4 3 3 Average Carried 5 | 1 4 5 7 7 7 3 3 3 3 Final Capacity 8 | 8 8 8 8 8 8 5 5 5 5 Final Carried 8 | 2 7 7 8 8 7 4 3 3 3 Class Distribution -------------------- 100% | Mutant Dominant Class ---------------- Mutant | -10/Materials Mutant | -9/Materials Mutant | -9/Storage Mutant | -9/Garrison Mutant | -9/Recycling Mutant | -7/Factory Mutant | -7/Lower Caves Mutant | -7/Data Miner Mutant | -6/Proximity Caves Resources | -11 -10 -9 -9 -9 -9 -7 -7 -7 -6 ----------- Run | Yrd Mat Mat Sto Gar Rec Fac Low Dat Pro Matter Collected 1619 | 174 253 206 140 450 134 64 198 . . Remotely . | . . . . . . . . . . Salvage Created 1227 | . 353 306 226 126 . 113 103 . . Parts 92 | . 21 24 21 11 . 5 10 . . Haulers Intercepted 2 | . . 2 . . . . . . . Recyclers Shooed 1 | . 1 . . . . . . . . Parts Field Recycled . | . . . . . . . . . . Retrieved Matter . | . . . . . . . . . . Parts Self-Destructed 12 | . . . . . . . 7 . 5 Prevented . | . . . . . . . . . . Parts Restored . | . . . . . . . . . . Kills | -11 -10 -9 -9 -9 -9 -7 -7 -7 -6 ------- Run | Yrd Mat Mat Sto Gar Rec Fac Low Dat Pro Combat Hostiles Destroyed 51 | . 10 9 9 11 . 4 8 . . Guns 10 | . 10 . . . . . . . . AOE 41 | . . 9 9 11 . 4 8 . . Classes Destroyed 10 | . 4 4 . . . 2 . . . Worker 2 | . 2 . . . . . . . . Builder 4 | . . 3 1 . . . . . . Tunneler 1 | . . . . . . 1 . . . Hauler 2 | . . 2 . . . . . . . Watcher 2 | . 1 . 1 . . . . . . Swarmer 24 | . 4 1 4 7 . . 8 . . Grunt 17 | . 6 4 . 4 . 3 . . . Duelist 1 | . . 1 . . . . . . . Sentry 8 | . . 3 5 . . . . . . Hunter 1 | . . . . . . 1 . . . Best Kill Streak 6 | . 4 4 6 4 . 3 4 . . Combat Bots Only 5 | . 3 2 5 4 . 3 4 . . Max Kills in Single Turn 3 | . 1 3 2 2 . 2 3 . . Gunslinging . | . . . . . . . . . . Exploded 3 | . . 2 2 2 . 2 3 . . Melee . | . . . . . . . . . . Uniques/NPCs Destroyed . | . . . . . . . . . . Combat | -11 -10 -9 -9 -9 -9 -7 -7 -7 -6 -------- Run | Yrd Mat Mat Sto Gar Rec Fac Low Dat Pro Hostile Shots Fired 281 | . 60 31 28 59 . 10 25 . 68 Missed 99 | . 13 11 10 25 . 3 11 . 26 Hits 182 | . 47 20 18 34 . 7 14 . 42 Projectile 182 | . 47 20 18 34 . 7 14 . 42 Damage Taken 2895 | . 557 288 270 534 . 134 338 . 774 Core 1208 | . 96 105 78 207 . . 128 . 594 Absorbed by Shields 18 | . . . . 18 . . . . . Core Remaining (%) 54 | 100 61 . . . 2 . . . . Volleys Fired 104 | . 39 14 19 11 . 14 7 . . Largest 2 | . 2 2 2 2 . 1 1 . . Hottest 110 | . 70 60 60 110 . 33 30 . . Shots Fired 152 | . 70 21 24 16 . 14 7 . . Gun 72 | . 70 . . 2 . . . . . Cannon . | . . . . . . . . . . Launcher 80 | . . 21 24 14 . 14 7 . . Special . | . . . . . . . . . . Kinetic 39 | . 39 . . . . . . . . Thermal 28 | . 28 . . . . . . . . Explosive 80 | . . 21 24 14 . 14 7 . . Electromagnetic 5 | . 3 . . 2 . . . . . Robot Hit Streak 16 | . 11 6 16 4 . 4 . . . Robot Miss Streak 3 | . 3 2 . 1 . 1 . . . Penetration Max . | . . . . . . . . . . Secondary Targets 1 | . 1 . . . . . . . . Max Gunslinging Chain 1 | . 1 . . . . . . . . Shots Hit Robots 80 | . 45 14 10 5 . 6 . . . Core Hits 96 | . 20 23 15 17 . 10 11 . . Critical Kills . | . . . . . . . . . . Critical Parts Destroyed 1 | . 1 . . . . . . . . Critical Strikes 4 | . 4 . . . . . . . . Burn 2 | . 2 . . . . . . . . Destroy 1 | . 1 . . . . . . . . Corrupt 1 | . 1 . . . . . . . . Melee Attacks . | . . . . . . . . . . Impact . | . . . . . . . . . . Slashing . | . . . . . . . . . . Piercing . | . . . . . . . . . . Sneak Attacks . | . . . . . . . . . . Combat Hostiles . | . . . . . . . . . . Follow-up Attacks . | . . . . . . . . . . Damage Inflicted 4048 | . 709 811 633 839 . 488 568 . . Guns 647 | . 627 . . 20 . . . . . Cannons . | . . . . . . . . . . Explosions 3395 | . 76 811 633 819 . 488 568 . . Melee . | . . . . . . . . . . Ramming 6 | . 6 . . . . . . . . Kinetic 374 | . 374 . . . . . . . . Thermal 287 | . 287 . . . . . . . . Explosive 3319 | . . 811 633 819 . 488 568 . . Electromagnetic 62 | . 42 . . 20 . . . . . Impact . | . . . . . . . . . . Slashing . | . . . . . . . . . . Piercing . | . . . . . . . . . . Highest Corruption . | . . . . . . . . . . Average Corruption . | . . . . . . . . . . Corruption Purged . | . . . . . . . . . . Corruption Blocked . | . . . . . . . . . . Overload Shots . | . . . . . . . . . . Overflow Damage 162 | . . 2 78 43 . 13 26 . . Projectiles . | . . . . . . . . . . Explosions 162 | . . 2 78 43 . 13 26 . . Melee . | . . . . . . . . . . Knockbacks . | . . . . . . . . . . Impact . | . . . . . . . . . . Kinetic . | . . . . . . . . . . Secondary . | . . . . . . . . . . Self-Inflicted Damage 262 | . 39 44 15 49 . . 115 . . Shots 9 | . 1 1 2 1 . . 4 . . Rammed . | . . . . . . . . . . Targets Rammed 2 | . 2 . . . . . . . . Kicked 2 | . 2 . . . . . . . . Crushed . | . . . . . . . . . . Highest Temperature 168 | . 168 9 13 51 . 6 34 . . Average Temperature 40 | . 50 4 7 21 . 3 16 . . Received Heat Transfer 660 | . 219 72 63 135 . 27 36 . 108 Siege Activations . | . . . . . . . . . . Martial Activations . | . . . . . . . . . . Shielding Activations . | . . . . . . . . . . Robots Disrupted . | . . . . . . . . . . Combat Hostiles . | . . . . . . . . . . Robots Corrupted . | . . . . . . . . . . Combat Hostiles . | . . . . . . . . . . Parts Fried . | . . . . . . . . . . Impact Corruptions . | . . . . . . . . . . Robots Melted . | . . . . . . . . . . Combat Hostiles . | . . . . . . . . . . Parts Melted 1 | . 1 . . . . . . . . Heat Transferred 877 | . 877 . . . . . . . . Parts Sabotaged . | . . . . . . . . . . Parts Stolen . | . . . . . . . . . . Parts Stripped . | . . . . . . . . . . Power Chain Reactions 1 | . 1 . . . . . . . . Alert | -11 -10 -9 -9 -9 -9 -7 -7 -7 -6 ------- Run | Yrd Mat Mat Sto Gar Rec Fac Low Dat Pro Maximum Alert Level 2 | . . 1 2 2 1 . . . . Low Security (%) 72 | 100 100 70 5 . 47 100 . . . Level 1 13 | . . 29 25 28 52 . . . . Level 2 14 | . . . 68 71 . . . . . Level 3 . | . . . . . . . . . . Level 4 . | . . . . . . . . . . Level 5 . | . . . . . . . . . . High Security . | . . . . . . . . . . Max Security . | . . . . . . . . . . Peak Influence 684 | . 102 331 540 684 307 136 . . . Initial 333 | . . 26 135 333 307 55 . . . Average 158 | . 33 137 427 504 223 81 . . . Influence Increases 2389 | . 305 491 498 431 5 287 195 . 177 Destroy 0b10 Robot/C 1080 | . 200 180 180 220 . 80 160 . 60 Destroy 0b10 Robot/NC 55 | . 15 25 10 . . 5 . . . Destroy Leader 228 | . 32 64 62 20 . 20 20 . 10 Allied During Kill 17 | . . . . . . . . . 17 Successful Hack 50 | . 8 14 23 . 5 . . . . Disable Machine 165 | . . 30 60 15 . 60 . . . Anti-Garrison Action 50 | . . . . 50 . . . . . Destroy Structure 414 | . 5 103 148 81 . 77 . . . Partial Spotted 45 | . . 15 15 . . 15 . . . Lose Combat Pursuer 285 | . 45 60 . 45 . 30 15 . 90 Influence Decreases 2282 | . 243 230 308 260 557 287 160 167 70 Entered New Map 1075 | . . 36 188 180 377 77 50 167 . Time Decay 822 | . 228 174 110 . 30 190 60 . 30 Lost Part 215 | . 15 20 10 80 . 20 50 . 20 Lost Ally 20 | . . . . . . . . . 20 Purge Threat 150 | . . . . . 150 . . . . Squads Dispatched 5 | . 2 1 . . . 2 . . . Investigation 3 | . 1 1 . . . 1 . . . Extermination . | . . . . . . . . . . Reinforcement 2 | . 1 . . . . 1 . . . Assault . | . . . . . . . . . . Garrison . | . . . . . . . . . . Intercept . | . . . . . . . . . . Searches Triggered . | . . . . . . . . . . Construction Impeded . | . . . . . . . . . . Haulers Reinforced . | . . . . . . . . . . Active Scanning Responses . | . . . . . . . . . . Cargo Convoy Interrupts . | . . . . . . . . . . Stealth | -11 -10 -9 -9 -9 -9 -7 -7 -7 -6 --------- Run | Yrd Mat Mat Sto Gar Rec Fac Low Dat Pro Distress Signals 4 | . 2 1 . 1 . . . . . Communications Jammed . | . . . . . . . . . . Distress Signals . | . . . . . . . . . . Times Spotted 94 | . 19 15 8 17 . 7 12 . 16 Peak Tracking Total 9 | . 5 9 5 9 . 3 7 . 7 Tactical Retreats 11 | . 2 2 . 1 . 1 2 . 3 ECM-based Alert Blocks 12 | . . . . . . . 6 . 6 Traps | -11 -10 -9 -9 -9 -9 -7 -7 -7 -6 ------- Run | Yrd Mat Mat Sto Gar Rec Fac Low Dat Pro Traps Triggered 5 | . 1 . . 3 . 1 . . . Indirectly . | . . . . . . . . . . Trap Hack Attempts . | . . . . . . . . . . Triggered . | . . . . . . . . . . Disarmed . | . . . . . . . . . . Reprogrammed . | . . . . . . . . . . Reused . | . . . . . . . . . . Traps Extracted . | . . . . . . . . . . Installed . | . . . . . . . . . . Triggered . | . . . . . . . . . . Machines | -11 -10 -9 -9 -9 -9 -7 -7 -7 -6 ---------- Run | Yrd Mat Mat Sto Gar Rec Fac Low Dat Pro Machines Disabled 11 | . . 2 4 1 . 4 . . . Max in Single Turn 1 | . . 1 1 1 . 1 . . . Machines Repaired . | . . . . . . . . . . Machines Dismantled . | . . . . . . . . . . Machines Sabotaged . | . . . . . . . . . . Overloaded Fab Kills . | . . . . . . . . . . Hacking | -11 -10 -9 -9 -9 -9 -7 -7 -7 -6 --------- Run | Yrd Mat Mat Sto Gar Rec Fac Low Dat Pro Machines Accessed 25 | . 3 4 9 1 2 2 . 4 . Terminals 17 | . 3 2 8 1 2 1 . . . Fabricators 1 | . . . . . . 1 . . . Repair Stations . | . . . . . . . . . . Recycling Units . | . . . . . . . . . . Scanalyzers 2 | . . 2 . . . . . . . Garrison Access 1 | . . . 1 . . . . . . Total Hacks 93 | . 12 16 21 3 8 4 . 29 . Successful 62 | . 7 10 9 . 4 3 . 29 . Failed 31 | . 5 6 12 3 4 1 . . . Catastrophic 5 | . 1 1 1 1 1 . . . . Database Lockouts . | . . . . . . . . . . Manual 14 | . 7 . 2 . 4 1 . . . Terminals 52 | . 12 8 19 3 8 2 . . . Fabricators 2 | . . . . . . 2 . . . Repair Stations . | . . . . . . . . . . Recycling Units . | . . . . . . . . . . Scanalyzers 8 | . . 8 . . . . . . . Garrison Access 2 | . . . 2 . . . . . . Terminal Hacks 52 | . 7 3 8 . 4 1 . 29 . Record 11 | . . . . . . . . 11 . Part Schematic 12 | . . . . . . . . 12 . Robot Schematic 3 | . . . . . . . . 3 . Prototype ID Bank 3 | . . . . . . . . 3 . Open Door 4 | . . . 4 . . . . . . Branch Access Points 3 | . 1 1 1 . . . . . . Terminal Index 2 | . 1 . . . 1 . . . . Alert Level 4 | . . 1 1 . 1 1 . . . Unreport Threat 1 | . . . . . 1 . . . . Locate Traps 2 | . 1 . 1 . . . . . . Patrol Status 1 | . 1 . . . . . . . . Recall Reinforcements 1 | . 1 . . . . . . . . Zone Layout 5 | . 2 1 1 . 1 . . . . Fabricator Hacks 2 | . . . . . . 2 . . . Load Schematic 1 | . . . . . . 1 . . . Build 1 | . . . . . . 1 . . . Repair Station Hacks . | . . . . . . . . . . Recycling Unit Hacks . | . . . . . . . . . . Scanalyzer 7 | . . 7 . . . . . . . Insert Component 2 | . . 2 . . . . . . . Analyze 2 | . . 2 . . . . . . . Retrieve Study 3 | . . 3 . . . . . . . Garrison Access Hacks 1 | . . . 1 . . . . . . Unlock Access 1 | . . . 1 . . . . . . Unauthorized Hacks . | . . . . . . . . . . Terminals . | . . . . . . . . . . Fabricators . | . . . . . . . . . . Repair Stations . | . . . . . . . . . . Recycling Units . | . . . . . . . . . . Scanalyzers . | . . . . . . . . . . Garrison Access . | . . . . . . . . . . Data Cores Recovered . | . . . . . . . . . . Used . | . . . . . . . . . . Hacking Detections 14 | . 2 3 6 1 . 2 . . . Full Trace Events 5 | . . 2 1 1 . 1 . . . Feedback Events . | . . . . . . . . . . Feedback Blocked . | . . . . . . . . . . Robot Schematics Acquired 3 | . . . . . . . . 3 . Robots Built . | . . . . . . . . . . Authchips . | . . . . . . . . . . Time . | . . . . . . . . . . Total Robot Build Rating . | . . . . . . . . . . Part Schematics Acquired 14 | . . 2 . . . . . 12 . Parts Built 1 | . . . . . . 1 . . . Authchips . | . . . . . . . . . . Time 62 | . . . . . . 62 . . . Total Part Build Rating 2 | . . . . . . 2 . . . Part Studies Acquired 3 | . . 3 . . . . . . . Parts Repaired . | . . . . . . . . . . Time . | . . . . . . . . . . Parts Recycled . | . . . . . . . . . . Recycled Matter . | . . . . . . . . . . Retrieved Matter . | . . . . . . . . . . Retrieved Components . | . . . . . . . . . . Parts Scanalyzed 2 | . . 2 . . . . . . . Part Schematics Acquired 2 | . . 2 . . . . . . . Parts Damaged . | . . . . . . . . . . Bothacking | -11 -10 -9 -9 -9 -9 -7 -7 -7 -6 ------------ Run | Yrd Mat Mat Sto Gar Rec Fac Low Dat Pro Used RIF Installer 1 | . . . . 1 . . . . . Robots Hacked . | . . . . . . . . . . Non-combat . | . . . . . . . . . . Combat . | . . . . . . . . . . Robot Hacks Applied . | . . . . . . . . . . Relay Couplers Released . | . . . . . . . . . . Fabnet Peak Effective % . | . . . . . . . . . . Robots Rewired . | . . . . . . . . . . Allies Hacked . | . . . . . . . . . . Hacks Repelled . | . . . . . . . . . . Allies | -11 -10 -9 -9 -9 -9 -7 -7 -7 -6 -------- Run | Yrd Mat Mat Sto Gar Rec Fac Low Dat Pro Total Allies 1 | . . . . . . . . . 1 Largest Group 1 | . . . . . . . . . 1 Highest-Rated Group 96 | . . . . . . . . . 96 Highest-Rated Ally 96 | . . . . . . . . . 96 Total Orders . | . . . . . . . . . . Ally Attacks 9 | . . . . . . . . . 9 Total Damage 192 | . . . . . . . . . 192 Kills 3 | . . . . . . . . . 3 Allies Corrupted . | . . . . . . . . . . Allies Melted . | . . . . . . . . . . Intel | -11 -10 -9 -9 -9 -9 -7 -7 -7 -6 ------- Run | Yrd Mat Mat Sto Gar Rec Fac Low Dat Pro Active Infowar (turns) 1619 | . 287 414 235 179 75 375 46 . 8 Optics 1142 | . 287 414 235 179 27 . . . . Sensors 462 | . . . . . 48 375 39 . . ECM 15 | . . . . . . . 7 . 8 Robot Analysis Total . | . . . . . . . . . . Derelict Logs Recovered 2 | . . . . . . . 2 . . Drone Launches . | . . . . . . . . . . Drone Recoveries . | . . . . . . . . . . Exploration | -11 -10 -9 -9 -9 -9 -7 -7 -7 -6 ------------- Run | Yrd Mat Mat Sto Gar Rec Fac Low Dat Pro Turns Passed 2318 | 63 693 414 235 193 76 384 121 28 111 Spaces Moved 3191 | 36 427 485 396 285 193 745 299 82 243 Core 136 | 9 . . . 4 . . . . 123 Treads . | . . . . . . . . . . Legs 640 | 27 427 186 . . . . . . . Wheels . | . . . . . . . . . . Hover . | . . . . . . . . . . Flight 2415 | . . 299 396 281 193 745 299 82 120 Fastest Speed 34 | 50 120 37 37 37 37 34 34 34 34 Average Speed 55 | 144 120 71 37 39 37 37 34 34 43 Slowest Speed 250 | 200 120 120 40 250 37 107 37 34 50 Overloaded Moves . | . . . . . . . . . . Propulsion Burnouts . | . . . . . . . . . . Robots Hopped 10 | . . . 1 3 . 2 1 . 3 Potential Cave-ins 6 | . . . 5 . . . 1 . . Cave-ins Triggered . | . . . . . . . . . . Exploration Rate (%) 41 | 3 75 45 53 35 45 15 39 70 38 Regions Visited 9 Branch Regions 5 Pre-discovered Areas 2 | . . . . . . . 1 1 . Known Exits Taken 5 | . . 1 1 . 1 1 . 1 . Unknown Exits Taken 3 | 1 1 . . . . . 1 . . Scrap Searched 3 | . . . . . . . 3 . . Spaces Dug 20 | . . . 20 . . . . . . Terrain Destroyed 502 | . 5 103 157 101 . 79 57 . . Melee . | . . . . . . . . . . Projectile . | . . . . . . . . . . AOE 502 | . 5 103 157 101 . 79 57 . . Terrain Rammed . | . . . . . . . . . . Walls Destroyed . | . . . . . . . . . . Machines Disabled . | . . . . . . . . . . Actions | -11 -10 -9 -9 -9 -9 -7 -7 -7 -6 --------- Run | Yrd Mat Mat Sto Gar Rec Fac Low Dat Pro Total 3580 | 44 537 527 457 349 197 834 308 81 246 Wait 170 | . 52 17 31 26 . 38 . . 6 Move 3163 | 35 426 484 393 278 192 740 296 81 238 Hop 8 | . . . 1 2 . 2 1 . 2 Pick Up 31 | 3 8 4 5 6 1 3 1 . . Fast Attach 19 | 5 1 1 1 3 1 6 1 . . Attach 18 | 1 2 2 2 5 . 4 2 . . Detach 8 | . . . . 2 1 5 . . . Swap 10 | . 3 3 2 1 . 1 . . . Drop 20 | . 4 2 3 3 2 6 . . . Fire 104 | . 39 14 19 11 . 14 7 . . Melee . | . . . . . . . . . . Ram . | . . . . . . . . . . Kick 2 | . 2 . . . . . . . . Crush . | . . . . . . . . . . Escape Stasis 27 | . . . . 12 . 15 . . . Rewire . | . . . . . . . . . . Trap . | . . . . . . . . . . Miscellaneous . | . . . . . . . . . . Route ------- -11/Scrapyard -10/Materials (discovered 4 exits: *Mat x2 / *Min / [*Sub]) -9/Materials (discovered 4 exits: *Min x2 / *Sto x2) -9/Storage (discovered 2 exits: Rec / Gar) -9/Garrison -9/Recycling -7/Factory -7/Lower Caves -7/Data Miner -6/Proximity Caves History --------- Turn | Location | Event 28 | -11/Scrapyard | Discovered new exit (range 15) 64 | -11/Scrapyard | Entered Materials 217 | -10/Materials | Discovered new exit (range 4) 238 | -10/Materials | Discovered new exit (range 13) 284 | -10/Materials | Discovered new exit (range 18) 284 | -10/Materials | Discovered new exit (range 15) 284 | -10/Materials | Identified exit to Mines 310 | -10/Materials | Build established: Mutant 757 | -10/Materials | Entered another Materials area 757 | -9/Materials | Evolved 2 slots: Utility x2 952 | -9/Materials | Discovered new exit (range 12) 1031 | -9/Materials | Identified exit to Mines 1033 | -9/Materials | Discovered new exit (range 15) 1035 | -9/Materials | Identified exit to Storage 1171 | -9/Materials | Entered Storage 1177 | -9/Storage | Identified exit to Recycling 1406 | -9/Storage | Identified exit to Garrison 1406 | -9/Storage | Entered Garrison 1444 | -9/Garrison | Installed Relay Interface Framework 1457 | -9/Garrison | Core integrity fell below 50% 1458 | -9/Garrison | Triggered checkpoint 1461 | -9/Garrison | Triggered checkpoint 1487 | -9/Garrison | Lost 3 parts (2p1w) 1528 | -9/Garrison | Core integrity fell below 20% 1559 | -9/Garrison | Lost 5 parts (1p1n1u2w) 1560 | -9/Garrison | Spotted B-75 Beast 1582 | -9/Garrison | Triggered checkpoint 1595 | -9/Garrison | Discovered exit to Recycling (range 12) 1599 | -9/Garrison | Entered Recycling 1669 | -9/Recycling | Discovered new exit (range 16) 1674 | -9/Recycling | Identified exit to Factory 1675 | -9/Recycling | Entered Factory 1675 | -7/Factory | Evolved 4 slots: Power x1, Propulsion x1, Utility x1, Weapon x1 1832 | -7/Factory | Fabricated Mni. Grenade Launcher (x1) 1882 | -7/Factory | Discovered new exit (range 13) 1908 | -7/Factory | Identified exit to Lower Caves 2059 | -7/Factory | Entered Lower Caves 2123 | -7/Lower Caves | Learned location of Zion (-6) 2138 | -7/Lower Caves | Lost 3 parts (1p1n1u) 2156 | -7/Lower Caves | Learned Factory non-interactive machine intel 2160 | -7/Lower Caves | Attracted the attention of an 0b10 base 2178 | -7/Lower Caves | A Derelict revealed a hidden shortcut to meet someone special 2180 | -7/Lower Caves | Entered Data Miner 2180 | -7/Data Miner | Discovered new exit (range 6) 2182 | -7/Data Miner | Identified exit to Proximity Caves 2187 | -7/Data Miner | Met Data Miner 2195 | -7/Data Miner | Acquired the access code to Warlord's prototype stash 2195 | -7/Data Miner | Learned location of Section 7 (-2) 2201 | -7/Data Miner | Received God Mode back door access code from Data Miner 2208 | -7/Data Miner | Entered Proximity Caves 2252 | -6/Proximity Caves | Core integrity fell below 50% 2260 | -6/Proximity Caves | Escorted by Enhanced Grunt 2289 | -6/Proximity Caves | Lost 6 parts (1p3n2u) 2310 | -6/Proximity Caves | Core integrity fell below 20% 2319 | -6/Proximity Caves | Destroyed by Dirty Bomb Trap Last Messages --------------- GOAL=ESCAPE M-22 Extractor extracts Dirty Bomb Trap. M-22 Extractor reprogrammed Fire Trap. M-22 Extractor extracts Fire Trap. Lgt. Nuclear Core destroyed. Imp. Flight Unit destroyed. Adv. ECM Suite destroyed. Xenon Bombardment Thruster destroyed. Imp. Flight Unit destroyed. Adv. Weight Redist. System destroyed. Enhanced Grunt: "Protecting LRC-V3." S-27 Virus triggered Fire Trap. Burning plasma bursts from the floor. S-27 Virus shuts down. S-27 Virus destroyed. S-27 Virus triggered Dirty Bomb Trap. An explosion rips through the floor. S-27 Virus destroyed. Dirty Bomb Trap short circuited. An explosion rips through the floor. Map ----- +----------------------------------------------------+ | | | | | | | | | | | | | ?????????????????????????????????????????????????? | | ?????????????????????????????????????????????????? | | ?????????????????????????????????????????????????? | | ?????????????????????????????????????????????????? | | ?????????????????????????????????????????????????? | | ?????????????????????????????????????????????????? | | ?????????????????????????????????????????????????? | | ?????????????????????????????????????????????????? | | ?????????????????????????????????????????????????? | | ?????????????????????????????????????????????????? | | ?????????????????????????????????????????????????? | | ???????????????????###???????????????????????????? | | ????????????????#### ???????????????????????????? | | ????????????????# ??????????????????????????? | | ????????????????##; ####?#####????????????????? | | ##????###??????## ; ### ;#?###????????????? | | ###### ####???# % ;;; ## ##???????????? | | ## ##### %% = #???????????? | | ;;; [ [ #???????????? | | ???# ;; @ % #??????????????? | | #?????#### ; ##??????????????? | | ### ###??????# ;# #% #???????????????? | | #?# #??????## ###### #???????????????? | | #??# #???????##?????# #???????????????? | | #??# #???????????????# #???????????????? | | ##?# #??????????????## ##??????????????? | | ### ##????????####?## ########???????? | | ###??????## ### #???????? | | ##????## #???????? | | ### ###### ## #???????? | | ####?# ## #?? #???????? | | #????# ## ### ?#???????? | | #????##### #### ### #?## #????????? | | # #????????#### #####?# #?# ###????????? | | #####???????????## #????# #### ##??????????? | | ????????????????## #????# #??# #???????????? | | ????????????????# #????# #??###???????????? | | ?????????????#### ##???# #????????????????? | | ?????????????# #???# ????????????????? | | ?????????????# #???# ???????????????? | | ?????????????## ##??# ??????????????? | | ??????????????## #??? #?????????????? | | ???????????????# #??????????????? | | ???????????????## ## ? ????????????????? | +----------------------------------------------------+ Best States ------------- Heat Dissipation 34 Energy Generation 23 Energy Capacity 430 Matter Stores 300 Matter Capacity 300 Sight Range 18 Robot Scan Range 15 Terrain Scan Density 10 ECM Strength 2 Additional Mass Support 9 Evasion (%) 63 Targeting Accuracy 6 Item Schematics ----------------- Mni. Grenade Launcher | -9/Materials | Scanalyzed Weight Redist. System | -9/Materials | Scanalyzed Combat Drone Bay | -7/Data Miner | Free Lgt. Regenerative Plating | -7/Data Miner | Free Cld. Aerolev Unit | -7/Data Miner | Free Exp. Targeting Computer | -7/Data Miner | Free Force Rifle | -7/Data Miner | Free Arm. Medium Treads | -7/Data Miner | Free Adv. Cooling System | -7/Data Miner | Free Imp. Plasma Cutter | -7/Data Miner | Free Magnetic Acceleration Cannon | -7/Data Miner | Free Lrn. Tractor Beam | -7/Data Miner | Free Adv. Shield Generator | -7/Data Miner | Free Imp. Force Booster | -7/Data Miner | Free Robot Schematics ------------------ B-48 Gladiator | -7/Data Miner | Free O-24 Administrator | -7/Data Miner | Free H-55 Commando | -7/Data Miner | Free Fabricated ------------ Mni. Grenade Launcher | x1 | -7/Factory Repaired ---------- Nothing Studied --------- Mni. Grenade Launcher | -9/Materials | Hacked Ion Engine | -9/Materials | Hacked Flight Unit | -9/Materials | Hacked Alien Tech Used ----------------- None Achievements -------------- Item+ Join The Dark Side Let Me Out Of Here Librarian The Oracle Challenges ------------ None Game ------ Seed BattlePoweredDiverter Manual? 0 Play Time 00:53:01 Cumulative 19.5 hours Start 2026.03.02 @ 19:18:36 End 2026.03.02 @ 20:10:19 Sessions 1 Manual Loads 0 Difficulty Rogue Special Mode None Game No. 28 Rogue 28 Adventurer 0 Explorer 0 Win Type - Total 0 Types 0/0/0/0/0/0/0/0/0/0 Lore% 6 Gallery% 18 Achievement% 16 Wizard Run 0 Options --------- Layout 1 ASCII 0 Keyboard 1 Movement Arrows Keybinds 0 Fullscreen 1 Font 24/Smallcaps Map View 50x35 Zoom Use 0% Tactical HUD 0 Map Filters NONE Filters NONE Steam 1 RUN: 7787ac40-8749-4780-89a3-cb9816ad66bc